bitfinex/quotes_SOLUSD_20250704
["timestamp","ask_amount","ask_price","bid_price","bid_amount"]
[1751597173570,6.60501981,151.4,151.37,6.38335415]
[1751597175251,6.60501981,151.4,151.38,6.28335415]
[1751597175870,6.28335415,151.39,151.37,0.1]
[1751597177575,6.28335415,151.38,151.37,0.1]
[1751597177771,12.8892466,151.38,151.37,0.1]
[1751597181864,6.60589245,151.38,151.37,0.1]
[1751597182250,12.8892466,151.38,151.37,0.1]
[1751597187174,6.60589245,151.38,151.37,0.1]
[1751597187374,12.8892466,151.38,151.37,0.1]
[1751597187682,39.17356974,151.38,151.37,0.1]
[1751597187851,39.17356974,151.38,151.37,1e-08]
[1751597188056,26.28432314,151.37,151.36,1e-08]
[1751597188361,32.28335415,151.37,151.36,1e-08]
[1751597188757,6.60589245,151.38,151.36,1e-08]
[1751597188974,6.28335415,151.37,151.36,1e-08]
[1751597189184,6.42079781,151.37,151.36,1e-08]
[1751597189989,0.13744366,151.37,151.36,1e-08]
[1751597190188,6.74377252,151.37,151.36,1e-08]
[1751597190492,13.02712667,151.37,151.36,1e-08]
[1751597191274,6.74377252,151.37,151.36,1e-08]
[1751597191474,39.02712667,151.37,151.36,1e-08]
[1751597191672,32.74377252,151.37,151.36,1e-08]
[1751597193172,0.13744366,151.37,151.36,1e-08]
[1751597193998,6.74377252,151.37,151.36,1e-08]
[1751597194706,13.02712667,151.37,151.36,1e-08]
[1751597194875,39.02712667,151.37,151.36,1e-08]
[1751597195978,13.31144981,151.37,151.36,1e-08]
[1751597196276,19.53101138,151.37,151.36,1e-08]
[1751597196501,13.24765723,151.37,151.36,1e-08]
[1751597196804,45.53101138,151.37,151.36,1e-08]
[1751597196985,53.42956553,151.37,151.36,1e-08]
[1751597197213,26.0,151.34,151.3,0.1]
[1751597197418,6.28335415,151.31,151.3,0.1]
[1751597198121,12.89230266,151.31,151.3,0.1]
[1751597200203,12.89230266,151.31,151.3,1e-08]
[1751597200204,40.75327165,151.31,151.3,1e-08]
[1751597200719,47.0366258,151.31,151.3,1e-08]
[1751597203106,66.46894851,151.31,151.3,1e-08]
[1751597203306,38.89230266,151.31,151.3,1e-08]
[1751597203827,12.8918424,151.33,151.3,1e-08]
[1751597204121,26.0,151.32,151.3,1e-08]
[1751597204520,162.91738495,151.36,151.3,1e-08]
[1751597204701,6.28335415,151.34,151.3,6.28335416]
[1751597205022,32.28335415,151.34,151.3,1e-08]
[1751597205214,32.28335415,151.34,151.3,6.28335416]
[1751597205625,32.28335415,151.34,151.3,1e-08]
[1751597205929,6.28335415,151.32,151.3,1e-08]
[1751597206821,23.12826272,151.33,151.3,1e-08]
[1751597207126,32.28335415,151.31,151.3,1e-08]
[1751597209126,39.3207505,151.31,151.3,1e-08]
[1751597209620,13.3207505,151.31,151.3,1e-08]
[1751597212617,39.3207505,151.31,151.3,1e-08]
[1751597212826,13.3207505,151.31,151.3,1e-08]
[1751597213218,21.22901207,151.31,151.29,1e-08]
[1751597213429,32.70983886,151.3,151.29,1e-08]
[1751597214239,26.0,151.3,151.29,1e-08]
[1751597215736,32.60938532,151.3,151.29,1e-08]
[1751597215919,38.89273947,151.3,151.29,1e-08]
[1751597219846,32.60938532,151.3,151.29,1e-08]
[1751597220545,6.75341972,151.31,151.29,1e-08]
[1751597222833,6.75310733,151.31,151.29,1.56480001]
[1751597223229,0.1441247,151.31,151.29,7.84815416]
[1751597223431,0.1441247,151.31,151.3,6.28335415]
[1751597225819,0.1441247,151.31,151.29,8.16110001]
[1751597226026,0.1441247,151.31,151.3,6.28335415]
[1751597228536,0.1441247,151.31,151.29,8.16110001]
[1751597228742,0.1441247,151.31,151.29,7.84815416]
[1751597229246,0.12430922,151.3,151.29,7.84815416]
[1751597230237,0.12430922,151.3,151.29,1.56480001]
[1751597230422,0.12430922,151.3,151.29,1e-08]
[1751597230620,13.01704869,151.3,151.29,1e-08]
[1751597230822,6.73369454,151.3,151.29,1e-08]
[1751597234522,6.93369454,151.3,151.29,1e-08]
[1751597238238,13.21704869,151.3,151.29,1e-08]
[1751597238843,6.93369454,151.3,151.29,1e-08]
[1751597240249,13.21704869,151.3,151.29,1e-08]
[1751597241623,6.93369454,151.3,151.29,1e-08]
[1751597241958,26.0,151.27,151.25,1.3882092]
[1751597242123,6.28335415,151.26,151.25,1.3882092]
[1751597242325,12.89448729,151.26,151.25,1.3882092]
[1751597243255,26.0,151.23,151.22,6.11784488]
[1751597243448,32.28335415,151.23,151.22,6.11784488]
[1751597244241,38.89579877,151.23,151.22,6.11784488]
[1751597244642,6.61244462,151.23,151.22,6.11784488]
[1751597246249,6.6120074,151.24,151.22,6.11784488]
[1751597246442,32.61169071,151.25,151.22,6.11784488]
[1751597246647,32.61169071,151.25,151.22,12.40119903]
[1751597247036,6.60982219,151.29,151.24,6.28335415]
[1751597247236,6.60982219,151.29,151.27,6.28335415]
[1751597247454,0.32430922,151.3,151.28,6.28335415]
[1751597247733,0.32430922,151.3,151.29,6.28335415]
[1751597249259,0.46450414,151.3,151.29,6.28335415]
[1751597249458,13.35727782,151.3,151.26,6.28335415]
[1751597250260,13.35727782,151.3,151.24,1.6184]
[1751597250460,13.35727782,151.3,151.26,6.28335415]
[1751597250760,13.2329686,151.3,151.26,6.28335415]
[1751597250940,6.94961445,151.3,151.26,6.28335415]
[1751597251134,13.2329686,151.3,151.26,6.28335415]
[1751597251753,6.94961445,151.3,151.27,6.28335415]
[1751597251960,6.94961445,151.3,151.28,6.28335415]
[1751597253666,0.34019492,151.3,151.28,6.28335415]
[1751597254539,0.34019492,151.3,151.29,6.28335415]
[1751597255665,6.94958833,151.3,151.29,6.28335415]
[1751597256865,6.94958833,151.3,151.28,6.28335415]
[1751597258157,0.34019492,151.3,151.28,6.28335415]
[1751597259062,6.94964347,151.3,151.25,0.1]
[1751597259266,6.94964347,151.3,151.27,6.28335415]
[1751597266683,6.94964347,151.3,151.27,6.28335415]
[1751597267683,6.94964347,151.3,151.25,0.1]
[1751597267897,6.94964347,151.3,151.27,6.28335415]
[1751597269165,0.14005487,151.28,151.27,6.28335415]
[1751597270083,0.14005487,151.28,151.25,0.1]
[1751597270285,0.14005487,151.28,151.27,6.28335415]
[1751597270580,6.42340902,151.28,151.25,0.1]
[1751597270896,12.89448729,151.26,151.25,0.1]
[1751597276581,6.61113314,151.26,151.25,0.1]
[1751597276764,12.89448729,151.26,151.25,0.1]
[1751597277166,6.61113314,151.26,151.25,0.1]
[1751597278086,6.6106961,151.27,151.25,0.1]
[1751597279198,6.75046063,151.28,151.25,6.38335415]
[1751597279494,6.75046063,151.28,151.26,6.28335415]
[1751597279863,0.14005487,151.28,151.27,6.28335415]
[1751597283992,6.75031399,151.28,151.25,6.38335415]
[1751597285275,6.75031399,151.28,151.26,6.28335415]
[1751597286388,6.75031399,151.28,151.25,6.38335415]
[1751597287176,6.75031399,151.28,151.25,0.1]
[1751597287378,6.28335415,151.27,151.25,0.1]
[1751597288282,6.61113314,151.26,151.25,0.1]
[1751597289175,6.75593627,151.26,151.25,0.1]
[1751597289874,13.03929042,151.26,151.25,0.1]
[1751597290304,6.75593627,151.26,151.25,0.1]
[1751597292385,0.14480313,151.26,151.25,6.38335415]
[1751597304096,13.03929042,151.26,151.25,0.1]
[1751597305416,6.75593627,151.26,151.25,0.1]
[1751597305717,13.03929042,151.26,151.25,0.1]
[1751597307225,6.75593627,151.26,151.25,0.1]
[1751597307427,13.03929042,151.26,151.25,0.1]
[1751597308707,6.75593627,151.26,151.25,0.1]
[1751597308902,0.14480313,151.26,151.25,6.38335415]
[1751597309095,0.27799588,151.26,151.25,6.38335415]
[1751597309817,0.27799588,151.26,151.25,12.99492439]
[1751597310203,0.27799588,151.26,151.25,6.38335415]
[1751597310595,0.13319275,151.26,151.25,6.38335415]
[1751597312226,0.13319275,151.26,151.25,0.1]
[1751597312531,0.13319275,151.26,151.25,6.38335415]
[1751597316401,0.13319275,151.26,151.25,12.99492439]
[1751597317032,0.13319275,151.26,151.25,6.38335415]
[1751597317935,0.13319275,151.26,151.25,12.99492439]
[1751597321437,0.13319275,151.26,151.25,40.9814091]
[1751597322038,0.13319275,151.26,151.25,14.9814091]
[1751597329143,0.25852897,151.26,151.25,14.9814091]
[1751597330621,0.12533622,151.26,151.25,14.9814091]
[1751597331641,0.12128544,151.27,151.25,21.26476325]
[1751597331937,0.12128544,151.27,151.26,12.5667083]
[1751597332526,0.12128544,151.27,151.26,12.89448729]
[1751597332922,0.32128544,151.27,151.26,12.89448729]
[1751597334257,0.32128544,151.27,151.25,8.27136599]
[1751597334439,0.32128544,151.27,151.26,6.28335415]
[1751597334951,0.32128544,151.27,151.26,13.320972]
[1751597339345,0.32128544,151.27,151.26,19.60432615]
[1751597340139,0.32421605,151.3,151.29,26.0]
[1751597340336,0.32421605,151.3,151.29,32.28335415]
[1751597340648,0.32421605,151.3,151.29,6.28335415]
[1751597342485,0.2,151.37,151.31,44.487]
[1751597342764,0.2,151.44,151.41,0.42648471]
[1751597342973,0.2,151.47,151.46,26.42648471]
[1751597343264,0.2,151.54,151.47,0.42648471]
[1751597343474,0.2,151.54,151.53,6.28335415]
[1751597344846,0.2,151.54,151.51,13.68021594]
[1751597345049,0.2,151.54,151.53,6.28335415]
[1751597345448,0.2,151.54,151.5,7.02714117]
[1751597345653,0.2,151.54,151.52,6.28335415]
[1751597347468,0.2,151.54,151.53,6.28335415]
[1751597351457,0.2,151.54,151.53,13.30919212]
[1751597352053,6.59533287,151.63,151.54,0.42648471]
[1751597352275,6.59533287,151.63,151.59,6.28335415]
[1751597352973,38.87868702,151.63,151.59,6.28335415]
[1751597353140,6.59533287,151.63,151.59,6.28335415]
[1751597353467,6.59533287,151.63,151.58,6.28335415]
[1751597353468,0.2,151.61,151.58,6.28335415]
[1751597354553,6.79594149,151.61,151.56,6.59790619]
[1751597354753,6.79594149,151.61,151.58,6.28335415]
[1751597355247,0.2,151.61,151.58,6.28335415]
[1751597359068,0.2,151.61,151.57,7.22]
[1751597359263,6.79594469,151.61,151.58,6.28335415]
[1751597359879,6.28335415,151.59,151.52,26.0]
[1751597360073,6.28335415,151.58,151.54,7.22]
[1751597360469,6.28335415,151.59,151.54,13.50335415]
[1751597360777,12.88031546,151.59,151.55,6.28335415]
[1751597361083,6.5964669,151.6,151.56,6.28335415]
[1751597361281,0.2,151.61,151.59,6.28335415]
[1751597361990,0.2,151.61,151.58,6.28335415]
[1751597363782,6.79587361,151.61,151.58,6.28335415]
[1751597363984,6.79587361,151.61,151.55,0.42648471]
[1751597363985,0.2,151.61,151.59,6.28335415]
[1751597364161,0.2,151.61,151.6,6.28335415]
[1751597367666,0.2,151.61,151.59,6.28335415]
[1751597371281,13.07922748,151.61,151.57,6.28335415]
[1751597372174,6.79587333,151.61,151.57,6.28335415]
[1751597372574,13.07922748,151.61,151.57,6.28335415]
[1751597373198,6.79587333,151.61,151.55,6.5984221]
[1751597373510,6.79587333,151.61,151.57,6.28335415]
[1751597374076,6.79587333,151.61,151.58,6.28335415]
[1751597377994,6.79587333,151.61,151.56,0.42648471]
[1751597378194,6.79587333,151.61,151.58,6.28335415]
[1751597381474,6.79587333,151.61,151.57,6.28335415]
[1751597381804,6.79587333,151.61,151.58,6.28335415]
[1751597382202,6.79587333,151.61,151.57,6.28335415]
[1751597384589,6.79587333,151.61,151.57,12.88093536]
[1751597386112,0.2,151.61,151.57,12.88093536]
[1751597386285,0.2,151.61,151.58,6.28335415]
[1751597387008,6.79590857,151.61,151.58,6.28335415]
[1751597387599,6.79590857,151.61,151.57,6.59758121]
[1751597387786,6.79590857,151.61,151.58,6.28335415]
[1751597388206,0.2,151.61,151.58,6.28335415]
[1751597389191,0.2,151.61,151.59,6.28335415]
[1751597389414,0.2,151.61,151.6,6.28335415]
[1751597392094,0.2,151.61,151.59,6.28335415]
[1751597392410,0.2,151.61,151.59,12.8800335]
[1751597392716,0.2,151.61,151.6,6.28335415]
[1751597394517,0.2,151.61,151.59,6.28335415]
[1751597394817,0.2,151.61,151.6,6.28335415]
[1751597395608,0.2,151.61,151.6,6.70983886]
[1751597396067,0.2,151.61,151.6,0.42648471]
[1751597396200,0.2,151.61,151.6,12.99319301]
[1751597396407,0.2,151.61,151.6,7.02279077]
[1751597396714,0.2,151.61,151.6,13.30614492]
[1751597400144,0.2,151.61,151.6,19.58949907]
[1751597400315,0.2,151.61,151.6,25.6577795]
[1751597400642,0.2,151.61,151.6,19.58949907]
[1751597400849,0.2,151.61,151.6,45.58949907]
[1751597401210,0.2,151.62,151.61,0.42648471]
[1751597401432,0.2,151.62,151.61,79.97875787]
[1751597401730,0.2,151.62,151.61,91.76063391]
[1751597402142,0.2,151.62,151.61,85.5917149]
[1751597402355,0.2,151.62,151.61,91.75765416]
[1751597406749,0.2,151.68,151.65,0.42648471]
[1751597406910,0.2,151.68,151.67,6.56767729]
[1751597408933,0.2,151.68,151.67,13.16093897]
[1751597410740,0.2,151.68,151.67,6.56767729]
[1751597415539,0.2,151.68,151.67,13.16093897]
[1751597416942,0.2,151.68,151.67,6.56767729]
[1751597421235,0.2,151.68,151.67,13.16093897]
[1751597422534,0.2,151.68,151.67,13.30310054]
[1751597426059,0.2,151.68,151.67,79.44645469]
[1751597428331,0.2,151.68,151.67,73.16310054]
[1751597428530,0.2,151.68,151.67,26.0]
[1751597428754,0.2,151.68,151.65,6.15030221]
[1751597428755,6.48335415,151.68,151.63,12.7452358]
[1751597428959,6.28335415,151.66,151.63,6.59493359]
[1751597429151,0.2,151.68,151.62,7.06]
[1751597429152,6.28335415,151.65,151.62,7.06]
[1751597429547,6.28335415,151.66,151.62,13.65535765]
[1751597429750,6.28335415,151.67,151.63,6.28335415]
[1751597429947,13.07619028,151.68,151.63,6.28335415]
[1751597430263,13.07618248,151.68,151.64,6.56767729]
[1751597430467,6.79282833,151.68,151.64,6.56767729]
[1751597430663,13.07618248,151.68,151.64,6.56767729]
[1751597431043,6.48335415,151.68,151.64,13.16222655]
[1751597432049,0.2,151.68,151.66,0.28432314]
[1751597432255,0.2,151.68,151.67,6.56767729]
[1751597432450,0.2,151.68,151.67,6.70983886]
[1751597433263,0.2,151.68,151.67,32.70983886]
[1751597434350,0.2,151.68,151.67,39.30310054]
[1751597439452,0.2,151.68,151.67,45.58645469]
[1751597440054,0.2,151.68,151.67,39.30310054]
[1751597442272,0.2,151.68,151.67,45.45340275]
[1751597443277,0.2,151.68,151.67,39.30310054]
[1751597443487,0.2,151.68,151.67,45.45340275]
[1751597448082,0.2,151.68,151.67,25.7367569]
[1751597449672,0.2,151.68,151.67,19.58645469]
[1751597450591,0.2,151.68,151.67,7.01974639]
[1751597450801,0.2,151.68,151.67,19.58645469]
[1751597459505,0.2,151.68,151.67,26.64645469]
[1751597463907,0.2,151.68,151.67,34.11542079]
[1751597467106,0.2,151.68,151.67,18.08688127]
[1751597468391,0.2,151.68,151.67,43.80255813]
[1751597468597,0.2,151.68,151.67,7.06]
[1751597468792,0.2,151.68,151.67,17.66039656]
[1751597468999,0.2,151.68,151.67,18.08688127]
[1751597469197,0.2,151.68,151.67,17.66039656]
[1751597469500,0.2,151.68,151.67,18.08688127]
[1751597470008,0.2,151.68,151.67,20.05982481]
[1751597470323,0.2,151.68,151.67,20.20198638]
[1751597470500,0.2,151.68,151.67,20.34414795]
[1751597470914,0.2,151.68,151.67,14.07974639]
[1751597471120,0.2,151.68,151.67,20.34414795]
[1751597472128,0.2,151.68,151.67,13.6087247]
[1751597472292,0.2,151.68,151.66,32.26440156]
[1751597472493,0.2,151.68,151.66,38.85803301]
[1751597473393,0.2,151.68,151.66,12.85803301]
[1751597475214,0.2,151.68,151.66,6.59363145]
[1751597475422,0.2,151.68,151.66,12.85803301]
[1751597476696,0.2,151.68,151.65,7.06]
[1751597476896,6.26440156,151.67,151.65,7.06]
[1751597479121,12.85770056,151.67,151.65,7.06]
[1751597479305,6.26440156,151.67,151.65,7.06]
[1751597481194,6.79298803,151.68,151.65,7.06]
[1751597481195,0.2,151.68,151.65,7.06]
[1751597481400,13.05723819,151.68,151.65,7.06]
[1751597481712,6.26440156,151.67,151.65,7.06]
[1751597483103,12.85794944,151.67,151.65,7.06]
[1751597483307,6.26440156,151.66,151.65,7.06]
[1751597487425,12.85809798,151.66,151.65,7.06]
[1751597488734,6.26440156,151.66,151.65,7.06]
[1751597489114,12.85809798,151.66,151.65,7.06]
[1751597490228,6.26440156,151.66,151.65,7.06]
[1751597491334,12.85809798,151.66,151.65,7.06]
[1751597491711,6.26440156,151.66,151.65,7.06]
[1751597495937,10.60621738,151.66,151.65,7.06]
[1751597496644,10.60621738,151.66,151.62,0.1]
[1751597496841,4.01252096,151.63,151.62,0.1]
[1751597498241,8.1207823,151.64,151.62,0.1]
[1751597498540,4.01252096,151.63,151.62,0.1]
[1751597499726,8.1207823,151.64,151.62,0.1]
[1751597500043,6.27190917,151.63,151.62,0.1]
[1751597500239,1.6617,151.6,151.55,0.1]
[1751597500453,38.81310917,151.56,151.55,0.1]
[1751597500817,51.47244986,151.56,151.55,0.1]
[1751597501039,60.89406751,151.56,151.55,0.1]
[1751597502133,67.49211448,151.56,151.55,0.1]
[1751597505025,27.6617,151.54,151.53,0.1]
[1751597505226,40.20551834,151.54,151.53,0.1]
[1751597505426,33.93360917,151.54,151.53,0.1]
[1751597505838,46.65706017,151.54,151.53,0.1]
[1751597506746,53.25597794,151.54,151.53,0.1]
[1751597512352,12.723451,151.54,151.53,0.1]
[1751597512528,6.59887878,151.55,151.53,0.1]
[1751597512846,6.27190917,151.54,151.53,0.1]
[1751597513551,6.27190917,151.55,151.53,0.1]
[1751597514732,27.6057,151.59,151.53,0.1]
[1751597514930,6.27190917,151.57,151.53,6.37190917]
[1751597515530,6.27190917,151.56,151.53,0.1]
[1751597519037,6.27190917,151.54,151.53,0.1]
[1751597521669,12.87082694,151.54,151.53,0.1]
[1751597523940,6.27190917,151.56,151.53,0.1]
[1751597524156,6.59734247,151.58,151.53,6.37190917]
[1751597524339,6.27190917,151.57,151.53,6.37190917]
[1751597524850,6.27190917,151.57,151.53,12.97125148]
[1751597525033,6.27190917,151.59,151.55,6.27190917]
[1751597525228,6.27190917,151.59,151.53,6.69934231]
[1751597525229,6.27190917,151.59,151.54,6.27190917]
[1751597525648,6.27190917,151.58,151.54,6.27190917]
[1751597525846,6.27190917,151.58,151.54,12.87081773]
[1751597526057,12.86885736,151.59,151.54,12.87081773]
[1751597528439,12.86885736,151.59,151.55,6.27190917]
[1751597528868,12.86885736,151.59,151.54,12.87081773]
[1751597529242,0.2,151.59,151.57,6.27190917]
[1751597529944,0.2,151.59,151.55,0.42648471]
[1751597530159,0.2,151.59,151.57,6.27190917]
[1751597530358,0.2,151.59,151.56,12.86995614]
[1751597530753,0.2,151.59,151.57,6.27190917]
[1751597531856,0.2,151.59,151.57,12.86932526]
[1751597532572,0.2,151.59,151.58,6.55623231]
[1751597533847,0.2,151.59,151.58,13.15340871]
[1751597541060,0.2,151.59,151.57,6.5975359]
[1751597541261,0.2,151.59,151.58,6.27190917]
[1751597541752,0.2,151.59,151.57,12.86944507]
[1751597541956,0.2,151.59,151.58,6.27190917]
[1751597542371,0.2,151.59,151.57,12.86944507]
[1751597543971,0.2,151.59,151.57,6.5975359]
[1751597545962,6.47190917,151.59,151.56,32.88227056]
[1751597546163,6.27190917,151.58,151.55,6.69831943]
[1751597547090,6.47190917,151.59,151.55,6.69831943]
[1751597547470,6.27190917,151.56,151.55,0.1]
[1751597548986,12.86995614,151.56,151.55,0.1]
[1751597551291,6.27190917,151.56,151.55,0.1]
[1751597552794,12.86995614,151.56,151.55,0.1]
[1751597554296,32.59780582,151.57,151.55,0.1]
[1751597554494,6.27190917,151.56,151.55,0.1]
[1751597556307,6.5973717,151.58,151.55,0.1]
[1751597556476,6.27190917,151.56,151.55,0.1]
[1751597556682,6.27190917,151.57,151.55,0.1]
[1751597562096,6.246265,151.57,151.55,0.1]
[1751597562621,32.79685152,151.59,151.55,0.1]
[1751597562824,6.27190917,151.57,151.55,0.1]
[1751597565728,6.27190917,151.57,151.55,6.69844485]
[1751597565886,6.27190917,151.57,151.55,0.1]
[1751597576640,32.79689893,151.59,151.55,0.1]
[1751597576851,6.27190917,151.58,151.55,6.69840645]
[1751597578832,6.27190917,151.57,151.55,0.1]
[1751597579456,6.47190917,151.57,151.55,0.1]
[1751597581947,0.2,151.57,151.55,0.1]
[1751597585768,0.2,151.57,151.55,6.69847164]
[1751597587263,0.2,151.57,151.55,12.97038081]
[1751597589063,0.2,151.57,151.55,6.69847164]
[1751597594605,4.21658362,151.57,151.55,0.1]
[1751597598862,0.2,151.57,151.55,0.1]
[1751597602619,4.01658362,151.56,151.55,0.1]
[1751597603095,0.2,151.57,151.55,0.1]
[1751597604680,10.81423971,151.57,151.55,0.1]
[1751597608382,4.21658362,151.57,151.55,0.1]
[1751597610498,10.81422675,151.57,151.55,0.1]
[1751597611199,4.01658362,151.56,151.55,0.1]
[1751597615017,6.79764313,151.57,151.55,0.1]
[1751597615217,4.01658362,151.56,151.55,0.1]
[1751597615517,10.81422675,151.57,151.55,0.1]
[1751597617633,4.01658362,151.56,151.55,0.1]
[1751597620017,10.61463059,151.56,151.55,0.1]
[1751597640333,41.49779303,151.56,151.55,0.1]
[1751597641441,37.48120941,151.56,151.55,0.1]
[1751597641845,32.59804697,151.56,151.55,0.1]
[1751597644055,4.21658362,151.57,151.55,0.1]
[1751597644056,6.79780179,151.57,151.55,0.1]
[1751597650268,10.81438541,151.57,151.55,0.1]
[1751597651371,10.61463059,151.56,151.55,0.1]
[1751597652258,6.59804697,151.56,151.55,0.1]
[1751597652450,10.61463059,151.56,151.55,0.1]
[1751597660168,26.0,151.54,151.53,0.1]
[1751597660360,30.01658362,151.54,151.53,0.1]
[1751597660670,34.89788802,151.54,151.53,0.1]
[1751597662187,41.49680579,151.54,151.53,0.1]
[1751597664488,41.49680579,151.54,151.53,1e-08]
[1751597664792,107.4815083,151.54,151.48,0.1]
[1751597664989,4.01658362,151.49,151.48,0.1]
[1751597666779,10.6176794,151.49,151.48,0.1]
[1751597670882,6.60109578,151.49,151.48,0.1]
[1751597671098,10.6176794,151.49,151.48,0.1]
[1751597672191,4.01658362,151.49,151.48,0.1]
[1751597672391,10.61724368,151.5,151.48,0.1]
[1751597672597,6.60066006,151.5,151.48,0.1]
[1751597677104,10.61724368,151.5,151.48,0.1]
[1751597677296,4.01658362,151.49,151.48,0.1]
[1751597679210,10.6176794,151.49,151.48,0.1]
[1751597681313,10.6176794,151.49,151.48,1e-08]
[1751597681611,15.46754473,151.49,151.48,1e-08]
[1751597683411,10.6176794,151.49,151.48,1e-08]
[1751597683819,12.8872894,151.49,151.48,1e-08]
[1751597685298,22.31582129,151.49,151.48,1e-08]
[1751597687798,154.1447,151.48,151.46,0.1]
[1751597688010,26.0,151.44,151.41,0.1]
[1751597688203,6.28619362,151.42,151.41,0.1]
[1751597688413,6.28619362,151.43,151.41,0.1]
[1751597689717,6.6041474,151.42,151.41,0.1]
[1751597692295,6.28619362,151.44,151.41,0.1]
[1751597692505,6.28619362,151.45,151.41,0.1]
[1751597692824,6.28619362,151.45,151.41,6.38619362]
[1751597693590,6.28619362,151.44,151.41,0.1]
[1751597696118,23.10940318,151.46,151.41,0.1]
[1751597696318,6.28619362,151.44,151.41,0.1]
[1751597696720,6.60371128,151.43,151.41,0.1]
[1751597697726,12.88946474,151.45,151.41,0.1]
[1751597697924,12.88946474,151.45,151.41,6.38619362]
[1751597700842,6.60252559,151.46,151.43,6.28619362]
[1751597702108,6.60252559,151.46,151.42,6.28619362]
[1751597702503,6.60252559,151.46,151.43,6.28619362]
[1751597703147,6.28619362,151.47,151.43,6.28619362]
[1751597704518,12.88858724,151.47,151.43,6.28619362]
[1751597704714,6.28619362,151.46,151.42,6.28619362]
[1751597705936,6.60153155,151.48,151.42,6.28619362]
[1751597706138,6.28619362,151.46,151.42,6.28619362]
[1751597707939,12.88866887,151.46,151.42,6.28619362]
[1751597708243,6.28619362,151.47,151.43,6.28619362]
[1751597709236,6.60153155,151.48,151.44,6.28619362]
[1751597709943,0.2,151.46,151.44,6.28619362]
[1751597711635,0.2,151.46,151.44,12.88944383]
[1751597711820,0.2,151.46,151.45,6.28619362]
[1751597717748,0.2,151.46,151.45,4.02216398]
[1751597717921,0.2,151.46,151.44,4.44864869]
[1751597718728,0.2,151.46,151.44,0.42648471]
[1751597718959,0.2,151.46,151.44,4.44864869]
[1751597722644,0.2,151.46,151.44,4.02216398]
[1751597722857,0.2,151.46,151.43,0.42648471]
[1751597723031,0.2,151.46,151.44,4.02216398]
[1751597726958,0.2,151.46,151.44,4.12216398]
[1751597736165,0.2,151.46,151.44,0.1]
[1751597736746,0.2,151.46,151.44,4.12216398]
[1751597739463,4.02216398,151.45,151.44,0.1]
[1751597740665,10.6250032,151.45,151.44,0.1]
[1751597742964,0.2,151.46,151.44,0.1]
[1751597743288,0.2,151.46,151.45,0.14216157]
[1751597743457,0.2,151.46,151.45,4.16432555]
[1751597743766,0.2,151.46,151.44,0.1]
[1751597743767,0.2,151.46,151.44,0.52648471]
[1751597744378,0.2,151.46,151.44,0.1]
[1751597744861,4.22216398,151.46,151.44,0.1]
[1751597746171,0.2,151.46,151.44,0.1]
[1751597748563,6.80249418,151.46,151.44,0.1]
[1751597748754,10.82465816,151.46,151.44,0.1]
[1751597750070,6.80249418,151.46,151.44,0.1]
[1751597753090,10.82465816,151.46,151.44,0.1]
[1751597753871,6.80249418,151.46,151.44,0.1]
[1751597754192,10.82465816,151.46,151.44,0.1]
[1751597755189,0.2,151.46,151.44,4.12216398]
[1751597761572,0.2,151.46,151.44,0.1]
[1751597765993,0.2,151.46,151.44,4.12216398]
[1751597769502,6.80241165,151.46,151.44,0.1]
[1751597769802,0.2,151.46,151.44,0.1]
[1751597775622,0.2,151.46,151.44,4.12216398]
[1751597775820,0.2,151.46,151.45,4.02216398]
[1751597776023,0.2,151.46,151.45,4.44864869]
[1751597776878,0.2,151.46,151.45,11.05148791]
[1751597780112,0.2,151.46,151.45,7.02932393]
[1751597780294,0.2,151.46,151.45,11.05148791]
[1751597787027,0.2,151.46,151.45,4.44864869]
[1751597787198,0.2,151.46,151.44,0.1]
[1751597787407,0.2,151.46,151.45,4.02216398]
[1751597801036,6.80240327,151.46,151.45,4.02216398]
[1751597801336,0.2,151.46,151.45,4.02216398]
[1751597801525,6.80258694,151.46,151.45,4.02216398]